{"text_format":"3","workbook":"xlsx","n_sheets":2,"sheets":["Lista nauczyciela"," Dane listy"],"not_rendered":{"defined_names":6},"read":"whole","date_system":"1900"}

{"sheet":"Lista nauczyciela","index":0,"n_rows":10,"n_cols":10,"rows_kept":10,"merged":[[0,1,0,2],[0,4,0,8],[2,9,6,9]]}
[null,"     Lista nauczyciela",null,"Dane listy","W tej komórce znajduje się legenda kolorów dla stanu: Nierozpoczęte to styl normalny, W toku to R=91 G=133 B=49, Do dzisiaj to R=118 G=88 B=0, Wstrzymane to R=109 G=66 B=111, Ukończone to Strikethrough, Anulowane to R=191 G=191 B=191, a Zaległe to R=191 G=33 B=28."]
[null,"POZYCJA","KATEGORIA","DATA ROZPOCZĘCIA","DATA UKOŃCZENIA","POZOSTAŁO DNI","STAN","NOTATKI"]
[null,"Wyczyścić szuflady","Biuro",{"$f":"DATE(YEAR(TODAY()),MONTH(TODAY())-1,6)","v":"2018-04-06"},{"$f":"DATE(YEAR(TODAY()),MONTH(TODAY())-1,16)","v":"2018-04-16"},{"$f":"IFERROR(IF(COUNT(Lista[[#This Row],[DATA ROZPOCZĘCIA]]:Lista[[#This Row],[DATA UKOŃCZENIA]])<>2,\"\",IF(OR(Lista[[#This Row],[STAN]]=\"Ukończone\",Lista[[#This Row],[STAN]]=\"Anulowane\",Lista[[#This Row],[STAN]]=\"Wstrzymane\"),\"\",Lista[[#This Row],[DATA UKOŃCZENIA]]-TODAY())),\"\")","v":""},"Ukończone",null,null,"W tej komórce znajduje się fragmentator stanu. Aby filtrować listę według stanu, wybierz stan z fragmentatora. Naciśnij i przytrzymaj klawisz CTRL, aby zaznaczyć wiele opcji."]
[null,"Zamówić naklejki","Materiały",{"$f":"DATE(YEAR(TODAY()),MONTH(TODAY())-1,11)","v":"2018-04-11"},{"$f":"DATE(YEAR(TODAY()),MONTH(TODAY())-1,21)","v":"2018-04-21"},{"$f":"IFERROR(IF(COUNT(Lista[[#This Row],[DATA ROZPOCZĘCIA]]:Lista[[#This Row],[DATA UKOŃCZENIA]])<>2,\"\",IF(OR(Lista[[#This Row],[STAN]]=\"Ukończone\",Lista[[#This Row],[STAN]]=\"Anulowane\",Lista[[#This Row],[STAN]]=\"Wstrzymane\"),\"\",Lista[[#This Row],[DATA UKOŃCZENIA]]-TODAY())),\"\")","v":""},"Ukończone"]
[null,"Wymyć i nawoskować podłogi","Inne",{"$f":"DATE(YEAR(TODAY()),MONTH(TODAY()-1),DAY(TODAY())-25)","v":"2018-04-16"},{"$f":"DATE(YEAR(TODAY()),MONTH(TODAY())-1,26)","v":"2018-04-26"},{"$f":"IFERROR(IF(COUNT(Lista[[#This Row],[DATA ROZPOCZĘCIA]]:Lista[[#This Row],[DATA UKOŃCZENIA]])<>2,\"\",IF(OR(Lista[[#This Row],[STAN]]=\"Ukończone\",Lista[[#This Row],[STAN]]=\"Anulowane\",Lista[[#This Row],[STAN]]=\"Wstrzymane\"),\"\",Lista[[#This Row],[DATA UKOŃCZENIA]]-TODAY())),\"\")","v":""},"Ukończone"]
[null,"Utworzyć etykiety z imionami","Materiały",{"$f":"DATE(YEAR(TODAY()),MONTH(TODAY())-1,21)","v":"2018-04-21"},{"$f":"DATE(YEAR(TODAY()),MONTH(TODAY())-1,1)","v":"2018-04-01"},{"$f":"IFERROR(IF(COUNT(Lista[[#This Row],[DATA ROZPOCZĘCIA]]:Lista[[#This Row],[DATA UKOŃCZENIA]])<>2,\"\",IF(OR(Lista[[#This Row],[STAN]]=\"Ukończone\",Lista[[#This Row],[STAN]]=\"Anulowane\",Lista[[#This Row],[STAN]]=\"Wstrzymane\"),\"\",Lista[[#This Row],[DATA UKOŃCZENIA]]-TODAY())),\"\")","v":""},"Wstrzymane"]
[null,"Ocenić kwartalne sprawdziany pisemne","Oceny",{"$f":"DATE(YEAR(TODAY()),MONTH(TODAY())-1,26)","v":"2018-04-26"},{"$f":"TODAY()-5","v":"2018-05-06"},{"$f":"IFERROR(IF(COUNT(Lista[[#This Row],[DATA ROZPOCZĘCIA]]:Lista[[#This Row],[DATA UKOŃCZENIA]])<>2,\"\",IF(OR(Lista[[#This Row],[STAN]]=\"Ukończone\",Lista[[#This Row],[STAN]]=\"Anulowane\",Lista[[#This Row],[STAN]]=\"Wstrzymane\"),\"\",Lista[[#This Row],[DATA UKOŃCZENIA]]-TODAY())),\"\")","v":-5},"Zaległe"]
[null,"Wiadomość e-mail z przypomnieniem o pozwoleniach","Rozmowy telefoniczne",{"$f":"DATE(YEAR(TODAY()),MONTH(TODAY()),1)","v":"2018-05-01"},{"$f":"TODAY()","v":"2018-05-11"},{"$f":"IFERROR(IF(COUNT(Lista[[#This Row],[DATA ROZPOCZĘCIA]]:Lista[[#This Row],[DATA UKOŃCZENIA]])<>2,\"\",IF(OR(Lista[[#This Row],[STAN]]=\"Ukończone\",Lista[[#This Row],[STAN]]=\"Anulowane\",Lista[[#This Row],[STAN]]=\"Wstrzymane\"),\"\",Lista[[#This Row],[DATA UKOŃCZENIA]]-TODAY())),\"\")","v":""},"Anulowane"]
[null,"Ocenić prace ustne","Biuro",{"$f":"DATE(YEAR(TODAY()),MONTH(TODAY()),7)","v":"2018-05-07"},{"$f":"DATE(YEAR(TODAY()),MONTH(TODAY()),17)","v":"2018-05-17"},{"$f":"IFERROR(IF(COUNT(Lista[[#This Row],[DATA ROZPOCZĘCIA]]:Lista[[#This Row],[DATA UKOŃCZENIA]])<>2,\"\",IF(OR(Lista[[#This Row],[STAN]]=\"Ukończone\",Lista[[#This Row],[STAN]]=\"Anulowane\",Lista[[#This Row],[STAN]]=\"Wstrzymane\"),\"\",Lista[[#This Row],[DATA UKOŃCZENIA]]-TODAY())),\"\")","v":6},"W toku"]
[null,"Zatemperować ołówki","Materiały",{"$f":"DATE(YEAR(TODAY()),MONTH(TODAY()),11)","v":"2018-05-11"},{"$f":"DATE(YEAR(TODAY()),MONTH(TODAY()),10)","v":"2018-05-10"},{"$f":"IFERROR(IF(COUNT(Lista[[#This Row],[DATA ROZPOCZĘCIA]]:Lista[[#This Row],[DATA UKOŃCZENIA]])<>2,\"\",IF(OR(Lista[[#This Row],[STAN]]=\"Ukończone\",Lista[[#This Row],[STAN]]=\"Anulowane\",Lista[[#This Row],[STAN]]=\"Wstrzymane\"),\"\",Lista[[#This Row],[DATA UKOŃCZENIA]]-TODAY())),\"\")","v":-1},"W toku"]

{"sheet":" Dane listy","index":1,"n_rows":13,"n_cols":3,"rows_kept":13}
[null,"    Dane listy","Lista nauczyciela"]
[null,"Kategoria"]
[null,"Biuro"]
[null,"Materiały"]
[null,"Rzeczy do kupienia"]
[null,"Rozmowy telefoniczne"]
[null,"Nowe pomysły"]
[null,"Oceny"]
[null,"Zespół"]
[null,"Interwencje"]
[null,"Komputer"]
[null,"Osobiste"]
[null,"Inne"]